fUSD/lending_fUSD_20240220
["ID","MTS","AMOUNT","RATE_DAILY","PERIOD"]
[314600462,1708447838085,-86641.85529652,0.00040835,2]
[314600464,1708447838106,-1982354.27671457,0.00040835,2]
[314600466,1708447838115,-749.32279448,0.00040835,2]
[314600468,1708447838124,-177.58,0.00040836,2]
[314600469,1708447838134,-499.99,0.00040846,2]
[314600472,1708447838143,-6744.0395275,0.00040856,11]
[314600474,1708447838153,-1839.2835075,0.00040857,11]
[314600476,1708447838163,-84783.7802854,0.00040858,6]
[314600478,1708447838172,-339135.121141,0.00040866,6]
[314600479,1708447838182,-84783.7802854,0.00040867,6]
[314600481,1708447838192,-84783.7802854,0.00040868,6]
[314600483,1708447838201,-84783.7802854,0.00040869,6]
[314600485,1708447838210,-859.87939396,0.00040872,4]
[314600487,1708447838219,-4168.07872672,0.00040875,4]
[314600490,1708447838229,-181.77538271,0.00040876,4]
[314600492,1708447838238,-1039.02206879,0.00040876,4]
[314600494,1708447838248,-155.0,0.00040876,4]
[314600496,1708447838257,-204.10275489,0.00040876,4]
[314600498,1708447838267,-155.0,0.00040876,4]
[314600500,1708447838276,-187.35436696,0.00040876,4]
[314600502,1708447838286,-5508.62716682,0.00040876,2]
[314600504,1708447838295,-203.87951121,0.00040876,4]
[314600506,1708447838305,-325.68614092,0.00040876,4]
[314600508,1708447838315,-551.47658733,0.00040876,4]
[314600510,1708447838325,-155.0,0.00040876,4]
[314600512,1708447838335,-155.65668911,0.00040876,4]
[314600514,1708447838344,-5774.31241492,0.00040876,15]
[314600516,1708447838354,-791.4890456,0.00040876,4]
[314600518,1708447838364,-155.0,0.00040876,4]
[314600520,1708447838373,-155.0,0.00040876,4]
[314600521,1708447838383,-639.74114869,0.00040876,4]
[314600522,1708447838392,-983.21067642,0.00040876,4]
[314600523,1708447838402,-283.00081274,0.00040876,4]
[314600524,1708447838411,-8145.18365387,0.00040876,4]
[314600525,1708447838421,-1398.6259437,0.00040876,4]
[314600526,1708447838431,-202.14148057,0.00040876,4]
[314600527,1708447838441,-185.24217914,0.00040876,4]
[314600528,1708447838450,-155.0,0.00040876,4]
[314600529,1708447838460,-479320.39812694,0.00040876,4]
[314600530,1708447838473,-20679.60187306,0.00040876,4]
[314600531,1708447838482,-1174.03498993,0.00040876,4]
[314600532,1708447838491,-155.0,0.00040876,4]
[314600533,1708447838501,-544.75527771,0.00040876,4]
[314600534,1708447838511,-1289.93916604,0.00040876,4]
[314600535,1708447838520,-155.0,0.00040876,4]
[314600536,1708447838529,-6604.92002468,0.00040876,4]
[314600537,1708447838542,-6624.79371237,0.00040876,4]
[314600538,1708447838551,-202.8505712,0.00040876,4]
[314600539,1708447838563,-2187.19921236,0.00040876,4]
[314600540,1708447838573,-158.00389612,0.00040876,4]
[314600541,1708447838582,-180.70585768,0.00040876,4]
[314600542,1708447838591,-591.17474633,0.00040876,60]
[314600543,1708447838600,-155.0,0.00040876,4]
[314600544,1708447838609,-18437.68142796,0.00040876,4]
[314600545,1708447838620,-221.07058019,0.00040876,4]
[314600546,1708447838630,-692.76169939,0.00040876,4]
[314600547,1708447838639,-1240.56131236,0.00040876,60]
[314600548,1708447838649,-191.76841184,0.00040877,4]
[314600549,1708447838658,-199.72473656,0.00040877,4]
[314600550,1708447838667,-155.0,0.00040877,4]
[314600551,1708447838677,-195.38246289,0.00040877,4]
[314600552,1708447838686,-167.73736893,0.00040877,4]
[314600553,1708447838697,-178.42181779,0.00040877,4]
[314600554,1708447838706,-523.42453954,0.00040877,4]
[314600555,1708447838716,-155.0,0.00040877,4]
[314600556,1708447838725,-572.3473198,0.00040877,4]
[314600557,1708447838734,-64282.79945206,0.00040877,30]
[314600558,1708447838746,-12234.15,0.00040877,30]
[314600562,1708447840429,-143723.83478733,0.00040877,30]
[314600563,1708447840441,-611.8451776,0.00040877,30]
[314600564,1708447840535,-5161.0,0.00040877,30]
[314600565,1708447840547,-468.76474603,0.00040877,30]
[314600571,1708447841505,-269.999962,0.00040877,30]
[314600572,1708447841570,-501.70711688,0.00040877,30]
[314600581,1708447843024,-24365.6029779,0.00040877,30]
[314600582,1708447843036,-11955.20439353,0.00040877,30]
[314600583,1708447843048,-17315.49351,0.00040877,30]
[314600584,1708447843061,-13833.184442,0.00040877,30]
[314600595,1708447845773,-2551.0900298,0.00040877,30]
[314600598,1708447869584,535566.31254664,0.00023,2]
[314600600,1708448067784,458.05195574,0.000241,2]
[314600601,1708448175563,863.22,0.00027397,2]
[314600602,1708448196546,1181.98,0.0003,2]
[314600606,1708448843125,-863.22,0.00031963,2]
[314600607,1708448843146,-863.22,0.0003653,2]
[314600608,1708448843166,-438.71,0.00036555,2]
[314600609,1708448843185,-46.59223617,0.000367,2]
[314600610,1708448972094,-208.0,0.00032489,2]
[314600611,1708448972114,-208.0,0.00033937,5]
[314600612,1708448972134,-208.0,0.00035385,8]
[314600613,1708448972156,-131.31058218,0.00036833,11]
[314600629,1708449031968,-76.68941782,0.00036833,11]
[314600630,1708449031981,-2480.63719818,0.00037,4]
[314600631,1708449031994,-277.93905889,0.00037,4]
[314600632,1708449032030,-3315.76805564,0.00037,4]
[314600633,1708449032039,-159.01532265,0.00037575,2]
[314600634,1708449032049,-500.0,0.00038226,2]
[314600635,1708449032057,-208.0,0.00038281,14]
[314600636,1708449032066,-165.27,0.00038356,2]
[314600637,1708449032076,-250.0,0.00038366,2]
[314600638,1708449032085,-100.37011896,0.00038369,15]
[314600639,1708449032099,-446.97988104,0.00038369,15]
[314600640,1708449032108,-645.5140395,0.00038369,2]
[314600641,1708449033364,-1097.02441633,0.00038369,2]
[314600642,1708449033375,-1433.15154417,0.00038369,2]
[314600643,1708449033385,-762.75,0.00038381,2]
[314600644,1708449033394,-361.54845583,0.00038381,2]
[314600645,1708449033405,-138.44154417,0.00038381,2]
[314600646,1708449033414,-465.41,0.00038381,2]
[314600647,1708449033423,-595.15,0.00038381,2]
[314600648,1708449033432,-189.68,0.00038386,2]
[314600649,1708449033444,-1135.74,0.00038457,2]
[314600650,1708449033454,-208.0,0.000385,2]
[314600651,1708449033463,-2000.0,0.00038517,2]
[314600652,1708449033473,-520.0,0.00038521,2]
[314600660,1708449033664,-382.7,0.00038522,2]
[314600662,1708449033674,-183.63,0.00038522,2]
[314600663,1708449033684,-179.64,0.0003853,2]
[314600665,1708449033697,-404.08,0.00038536,2]
[314600666,1708449033706,-2075.57,0.00038541,2]
[314600667,1708449033715,-1102.64,0.0003855,2]
[314600668,1708449033725,-214.43,0.00038556,2]
[314600669,1708449033735,-750.0,0.00038659,2]
[314600670,1708449033744,-2368.0,0.00038663,2]
[314600671,1708449033753,-843.74,0.00038673,2]
[314600672,1708449033762,-480.0,0.00038754,2]
[314600673,1708449033772,-177.58,0.000388,2]
[314600674,1708449033781,-438.71,0.00038819,2]
[314600675,1708449033790,-669.16,0.0003886,2]
[314600676,1708449033800,-4490.60350899,0.000389,3]
[314600677,1708449033809,-156.24,0.0003895,2]
[314600678,1708449033818,-4333.0,0.00039003,2]
[314600679,1708449033827,-159.01532263,0.00039162,2]
[314600680,1708449033836,-3006.81,0.00039178,2]
[314600681,1708449033845,-177.58,0.00039348,2]
[314600682,1708449033863,-208.0,0.0003954,2]
[314600683,1708449033875,-250.0,0.00039659,2]
[314600684,1708449033888,-208.0,0.00039729,17]
[314600685,1708449033898,-164.15,0.000398,3]
[314600686,1708449033908,-786.19,0.000398,3]
[314600687,1708449033918,-786.19,0.000398,3]
[314600688,1708449033929,-786.19,0.000398,3]
[314600689,1708449033938,-786.19,0.000398,3]
[314600690,1708449033951,-786.19,0.000398,3]
[314600691,1708449033962,-786.19,0.000398,3]
[314600692,1708449033972,-786.19,0.000398,3]
[314600693,1708449033981,-786.19,0.000398,3]
[314600694,1708449033991,-786.19,0.000398,3]
[314600695,1708449034001,-786.19,0.000398,3]
[314600696,1708449034010,-786.19,0.000398,3]
[314600697,1708449034020,-786.19,0.000398,3]
[314600698,1708449034030,-786.19,0.000398,3]
[314600699,1708449034039,-786.19,0.000398,3]
[314600700,1708449034049,-786.19,0.000398,3]
[314600701,1708449034062,-786.19,0.000398,3]
[314600702,1708449034072,-786.19,0.000398,3]
[314600703,1708449034083,-786.19,0.000398,3]
[314600704,1708449034093,-786.19,0.000398,3]
[314600705,1708449034103,-786.19,0.000398,3]
[314600706,1708449034113,-155.0,0.00039849,2]
[314600707,1708449034123,-1830.5033,0.00039872,2]
[314600708,1708449034133,-177.58,0.00039896,2]
[314600709,1708449034143,-250.0,0.00039933,2]
[314600710,1708449034153,-404.08,0.00039962,2]
[314600711,1708449034162,-4148.1095878,0.00039994,12]
[314600712,1708449034172,-179.15164427,0.00039994,8]
[314600713,1708449034181,-1110.48526818,0.00039994,8]
[314600714,1708449034193,-3500.0,0.0004,40]
[314600715,1708449034203,-255.0,0.0004,12]
[314600716,1708449034213,-7752.439,0.0004,40]
[314600717,1708449034222,-315.0,0.0004,12]
[314600718,1708449034232,-2831.58489122,0.0004,2]
[314600719,1708449034250,-7168.41510878,0.0004,2]
[314600720,1708449034260,-191.63562313,0.00040148,4]
[314600721,1708449034269,-1102.64,0.00040194,2]
[314600722,1708449034279,-494.50595634,0.00040207,2]
[314600723,1708449034288,-382.7891,0.00040261,2]
[314600724,1708449034297,-1319.31453317,0.00040325,2]
[314600725,1708449034307,-3013.65425179,0.00040344,2]
[314600726,1708449034318,-3815.74281672,0.00040344,2]
[314600727,1708449034329,-542.099378,0.00040344,12]
[314600728,1708449034338,-726.66914683,0.00040344,5]
[314600729,1708449034347,-2570.51571517,0.00040344,2]
[314600730,1708449034357,-766.31,0.00040351,10]
[314600731,1708449034367,-17198.16294328,0.0004036,2]
[314600732,1708449034398,-293.26397614,0.0004036,2]
[314600733,1708449034410,-498.23905597,0.0004036,2]
[314600737,1708449037905,-176.31786,0.00032489,2]
[314600738,1708449037915,-638.59,0.0004035,10]
[314600739,1708449037926,-11414.58306325,0.0004036,2]
[314600740,1708449037939,-1107.28821267,0.0004036,2]
[314600741,1708449038085,-8386.74266207,0.0004036,2]
[314600742,1708449038096,-5063.12635931,0.0004036,2]
[314600743,1708449038110,-11779.49863193,0.0004036,2]
[314600744,1708449038123,-1512.48542843,0.0004036,2]
[314600745,1708449038136,-988.31736956,0.0004036,2]
[314600746,1708449038148,-1024.74,0.0004036,2]
[314600747,1708449038159,-253.01859739,0.0004036,2]
[314600748,1708449038170,-2422.68029172,0.0004036,2]
[314600749,1708449038200,-169769.90178142,0.0004036,2]
[314600750,1708449038209,-40079.57247232,0.0004036,2]
[314600751,1708449038218,-619189.7723,0.00040361,2]
[314600752,1708449038228,-177.58,0.00040444,2]
[314600753,1708449038237,-1534.44126746,0.00040518,14]
[314600754,1708449038246,-183.63,0.00040529,2]
[314600755,1708449038256,-254.519455,0.00040548,14]
[314600756,1708449038265,-328.07571328,0.0004056,4]
[314600757,1708449038275,-559.78397774,0.00040561,4]
[314600758,1708449038285,-208.0,0.0004057,2]
[314600759,1708449038295,-1319.31453317,0.00040601,2]
[314600760,1708449038304,-84787.8117093,0.00040608,6]
[314600761,1708449038314,-28055.219766,0.00040618,10]
[314600762,1708449038324,-146757.7434828,0.00040655,7]
[314600763,1708449038333,-447.64637563,0.00040655,2]
[314600764,1708449038342,-324.36239177,0.00040655,7]
[314600765,1708449038351,-152.0,0.00040674,7]
[314600766,1708449038360,-12983.8801,0.00040678,2]
[314600768,1708449038369,-779.2958483,0.00040684,2]
[314600769,1708449038378,-169575.623419,0.0004069,6]
[314600770,1708449038388,-463.03027328,0.0004069,2]
[314600771,1708449038397,-8816.84639177,0.0004069,2]
[314600772,1708449038407,-458.495915,0.0004069,2]
[314600773,1708449038417,-189.99518278,0.0004069,2]
[314600774,1708449038426,-1733699.78681521,0.000407,3]
[314600775,1708449038435,-161577.28992743,0.000407,2]
[314600776,1708449038447,-127916.66045679,0.000407,2]
[314600777,1708449038460,-1176.60009051,0.000407,2]
[314600778,1708449038471,-563.68163121,0.000407,2]
[314600779,1708449041244,-1139.11643078,0.00039994,14]
[314600780,1708449041255,-301.83235067,0.00039994,14]
[314600781,1708449041591,-6807.44951772,0.00039994,14]
[314600782,1708449041605,-23202.05354642,0.00039994,14]
[314600783,1708449041614,-34284.81372294,0.000407,2]
[314600784,1708449041625,-1087.7210005,0.000407,2]
[314600785,1708449041637,-1424.0,0.000407,2]
[314600786,1708449042199,-260.97505988,0.000407,2]
[314600787,1708449042259,-88723.59516168,0.000407,2]
[314600788,1708449042268,-150.607816,0.000407,2]
[314600789,1708449042278,-159.01532263,0.00040748,2]
[314600790,1708449042288,-1112.47729097,0.00040769,10]
[314600791,1708449042297,-150.0,0.00040777,2]
[314600792,1708449042307,-300.0,0.00040777,7]
[314600793,1708449042316,-516.19120909,0.00040777,12]
[314600794,1708449042325,-6057.4333,0.00040778,2]
[314600796,1708449042334,-178.85611128,0.00040778,2]
[314600797,1708449042343,-235880.52673273,0.0004078,2]
[314600798,1708449042353,-423939.058546,0.0004079,6]
[314600799,1708449042362,-20000.0,0.0004079,120]
[314600800,1708449042371,-153.27826504,0.00040799,9]
[314600802,1708449042387,-378.36143384,0.00040799,31]
[314600803,1708449042402,-412.40426334,0.00040799,31]
[314600804,1708449042412,-438.06602695,0.00040799,31]
[314600805,1708449042421,-500.0,0.00040799,31]
[314600806,1708449042431,-1143790.35575643,0.000408,4]
[314600807,1708449042444,-1035.48132165,0.000408,4]
[314600808,1708449042459,-260.15833708,0.000408,4]
[314600826,1708449042944,-24365.6029779,0.000408,4]
[314600827,1708449042958,-11955.20439353,0.000408,4]
[314600828,1708449042970,-17315.49351,0.000408,4]
[314600829,1708449042985,-13833.184442,0.000408,4]
[314600830,1708449042996,-12003.59862366,0.000408,4]
[314600831,1708449043008,-717.97,0.000408,4]
[314600832,1708449043038,-4108.26294619,0.000408,4]
[314600833,1708449043051,-1971.5479894,0.000408,4]
[314600834,1708449043077,-134316.81069204,0.000408,4]
[314600835,1708449043087,-3000.0,0.00040876,6]
[314600836,1708449043096,-26877.18818363,0.00040877,30]
[314600837,1708449043108,-2000.0,0.00040877,7]
[314600838,1708449043118,-200.0,0.00040877,7]
[314600839,1708449043127,-2000.0,0.00040877,7]
[314600840,1708449043138,-200.0,0.00040877,7]
[314600841,1708449043147,-73652.38870975,0.00040878,4]
[314600842,1708449043157,-313.67043375,0.00040878,30]
[314600843,1708449043167,-313.67043375,0.00040878,30]
[314600844,1708449043176,-313.67043375,0.00040878,30]
[314600845,1708449043186,-313.67043375,0.00040878,30]
[314600846,1708449043196,-300.0,0.00040878,2]
[314600847,1708449043206,-300.0,0.00040878,2]
[314600848,1708449043216,-300.0,0.00040878,2]
[314600849,1708449043225,-300.0,0.00040878,2]
[314600850,1708449043235,-300.0,0.00040878,2]
[314600851,1708449043244,-300.0,0.00040878,2]
[314600852,1708449043254,-300.0,0.00040878,2]
[314600853,1708449043264,-214.70198504,0.00040889,2]
[314600854,1708449043273,-313.67043375,0.00040899,30]
[314600855,1708449043283,-1000.0,0.00040899,2]
[314600856,1708449043292,-150.0,0.00040899,3]
[314600857,1708449043301,-150.0,0.00040899,3]
[314600858,1708449043311,-158427.94213303,0.000409,30]
[314600859,1708449043326,-2200.19976679,0.000409,30]
[314600860,1708449043337,-167267.03370137,0.000409,30]
[314600861,1708449043347,-26880.0,0.00040904,4]
[314600862,1708449043356,-152.0,0.00040948,7]
[314600863,1708449043366,-154.87,0.00040963,2]
[314600864,1708449043375,-218690.71004853,0.0004098,2]
[314600865,1708449043385,-177.58,0.00040992,2]
[314600866,1708449043394,-1534.44126738,0.00040997,15]
[314600867,1708449043403,-800.0,0.00041,2]
[314600868,1708449043413,-3500.0,0.00041,41]
[314600869,1708449043422,-164.0,0.00041,14]
[314600870,1708449043431,-171.412715,0.00041046,2]
[314600871,1708449043440,-158.322793,0.00041046,2]
[314600872,1708449043450,-291.675147,0.00041046,2]
[314600873,1708449043462,-182.967592,0.00041046,2]
[314600874,1708449043472,-182.96759,0.00041046,2]
[314600875,1708449043482,-192.841514,0.00041046,2]
[314600877,1708449043491,-152.891122,0.00041046,2]
[314600878,1708449043501,-220.561113,0.00041046,2]
[314600879,1708449043511,-171.412714,0.00041046,2]
[314600880,1708449043521,-182.96759,0.00041046,2]
[314600881,1708449043531,-215.420462,0.00041046,2]
[314600882,1708449043540,-197.921148,0.00041046,2]
[314600883,1708449043550,-438.71,0.00041083,2]
[314600884,1708449043559,-1000.0,0.00041095,60]
[314600885,1708449043569,-863.22,0.00041096,2]
[314600886,1708449043578,-689.49,0.000411,2]
[314600887,1708449043587,-689.49,0.000411,2]
[314600888,1708449043596,-689.49,0.000411,2]
[314600889,1708449043606,-689.49,0.000411,2]
[314600890,1708449043616,-689.49,0.000411,2]
[314600891,1708449043625,-689.49,0.000411,2]
[314600892,1708449043635,-689.49,0.000411,2]
[314600893,1708449043644,-689.49,0.000411,2]
[314600894,1708449043654,-689.49,0.000411,2]
[314600895,1708449043663,-689.49,0.000411,2]
[314600896,1708449043673,-2570.51571515,0.00041117,3]
[314600897,1708449043682,-6829.39706843,0.00041128,3]
[314600898,1708449043691,-208.0,0.00041177,20]
[314600899,1708449043702,-779.2958483,0.00041209,2]
[314600900,1708449043712,-155.0,0.00041219,2]
[314600901,1708449043721,-152.0,0.00041222,7]
[314600902,1708449043730,-2000.0,0.00041286,7]
[314600903,1708449043740,-200.0,0.00041286,7]
[314600904,1708449043749,-2000.0,0.00041286,7]
[314600905,1708449043759,-200.0,0.00041286,7]
[314600906,1708449043768,-154.87,0.00041296,2]
[314600907,1708449043777,-254.519455,0.0004137,14]
[314600908,1708449043787,-404.08,0.00041388,2]
[314600909,1708449043796,-1534.44126738,0.00041477,15]
[314600910,1708449043805,-152.0,0.00041496,7]
[314600911,1708449043815,-1112.47729091,0.00041502,10]
[314600912,1708449043824,-177.58,0.0004154,2]
[314600913,1708449043833,-215.420462,0.00041559,30]
[314600914,1708449043842,-208.0,0.0004161,2]
[314600915,1708449043852,-154.87,0.00041629,2]
[314600916,1708449043860,-2000.0,0.00041699,7]
[314600917,1708449043870,-200.0,0.00041699,7]
[314600918,1708449043879,-152.0,0.0004177,7]
[314600919,1708449043889,-4451.7570429,0.000418,10]
[314600920,1708449043898,-1102.64,0.00041838,2]
[314600921,1708449043910,-2570.51571515,0.00041889,4]
[314600922,1708449043919,-150.5,0.00041892,120]
[314600923,1708449043931,-14741.39646502,0.000419,30]
[314600924,1708449043941,-2689.0,0.000419,3]
[314600925,1708449043950,-16110.53,0.00041902,2]
[314600926,1708449043961,-6829.39706843,0.00041912,4]
[314600927,1708449043971,-726.66914669,0.00041923,5]
[314600928,1708449043983,-1534.44126738,0.00041956,16]
[314600929,1708449043991,-154.87,0.00041962,2]
[314600930,1708449044001,-900.0,0.00042,43]
[314600931,1708449044010,-12366.0,0.00042,3]
[314600932,1708449044020,-200.39217313,0.00042,2]
[314600933,1708449044029,-152.0,0.00042044,7]
[314600934,1708449044039,-180.0,0.00042059,2]
[314600935,1708449044048,-152.891122,0.00042072,30]
[314600936,1708449044057,-182.96759,0.00042072,30]
[314600937,1708449044066,-215.420462,0.00042072,30]
[314600938,1708449044076,-177.58,0.00042088,2]
[314600939,1708449044085,-547.35,0.00042105,15]
[314600940,1708449044095,-153.27826504,0.00042109,14]
[314600941,1708449044105,-254.519455,0.00042192,14]
[314600942,1708449044115,-164.15,0.000422,4]
[314600943,1708449044125,-164.15,0.000422,4]
[314600944,1708449044134,-786.19,0.000422,4]
[314600945,1708449044144,-786.19,0.000422,4]
[314600946,1708449044153,-786.19,0.000422,4]
[314600947,1708449044162,-786.19,0.000422,4]
[314600948,1708449044172,-786.19,0.000422,4]
[314600949,1708449044181,-786.19,0.000422,4]
[314600950,1708449044190,-786.19,0.000422,4]
[314600951,1708449044199,-786.19,0.000422,4]
[314600952,1708449044210,-786.19,0.000422,4]
[314600953,1708449044219,-786.19,0.000422,4]
[314600954,1708449044228,-786.19,0.000422,4]
[314600955,1708449044237,-786.19,0.000422,4]
[314600956,1708449044246,-786.19,0.000422,4]
[314600957,1708449044255,-786.19,0.000422,4]
[314600958,1708449044265,-786.19,0.000422,4]
[314600959,1708449044274,-786.19,0.000422,4]
[314600960,1708449044283,-786.19,0.000422,4]
[314600961,1708449044292,-786.19,0.000422,4]
[314600962,1708449044301,-786.19,0.000422,4]
[314600963,1708449044311,-786.19,0.000422,4]
[314600964,1708449044320,-1112.47729091,0.00042235,10]
[314600965,1708449044330,-150.0,0.00042255,2]
[314600966,1708449044339,-160.52,0.00042283,2]
[314600967,1708449044348,-154.87,0.00042295,2]
[314600968,1708449044357,-152.0,0.00042318,7]
[314600969,1708449044367,-179.64,0.00042384,2]
[314600970,1708449044376,-1608.37229584,0.000425,60]
[314600971,1708449044385,-150.0,0.00042528,2]
[314600972,1708449044395,-215.420462,0.00042585,30]
[314600973,1708449044403,-152.0,0.00042592,7]
[314600974,1708449044413,-208.0,0.00042625,23]
[314600975,1708449044422,-154.87,0.00042628,2]
[314600976,1708449044431,-298.83872222,0.00042636,2]
[314600977,1708449044440,-208.0,0.0004265,2]
[314600978,1708449044450,-150.0,0.00042658,2]
[314600979,1708449044461,-2570.51571515,0.00042662,4]
[314600980,1708449044470,-150.0,0.00042674,2]
[314600981,1708449044479,-6829.39706843,0.00042696,4]
[314600982,1708449044489,-1008.49,0.000427,7]
[314600983,1708449044498,-1572.13,0.000427,7]
[314600984,1708449044507,-404.08,0.00042814,2]
[314600985,1708449044517,-156.24,0.00042845,2]
[314600986,1708449044526,-152.0,0.00042866,7]
[314600987,1708449044536,-150.0,0.00042876,2]
[314600988,1708449044545,-1000.0,0.00042899,15]
[314600989,1708449044556,-195.59750602,0.00042899,4]
[314600990,1708449044566,-3107.9690139,0.00042899,7]
[314600991,1708449044576,-2139.28199091,0.00042899,4]
[314600992,1708449044585,-1000.0,0.00042899,15]
[314600993,1708449044594,-720.19838936,0.00042899,5]
[314600994,1708449044603,-346.0384842,0.00042899,5]
[314600995,1708449044613,-1170.13638674,0.00042899,7]
[314600996,1708449044622,-197.56819337,0.00042899,5]
[314600997,1708449044631,-283.54131041,0.00042899,5]
[314600998,1708449044641,-286.62292691,0.00042899,5]
[314600999,1708449044650,-4264.44103669,0.00042899,7]
[314601000,1708449044660,-2132.22051835,0.00042899,7]
[314601001,1708449044670,-152.0,0.00042928,3]
[314601002,1708449044679,-154.87,0.00042961,2]
[314601003,1708449044688,-1112.47729091,0.00042968,11]
[314601004,1708449044698,-100777.49052952,0.00043,30]
[314601005,1708449044707,-1830.6867938,0.00043,2]
[314601006,1708449044717,-7305.9477573,0.00043,2]
[314601007,1708449044726,-177.94121353,0.00043,2]
[314601008,1708449044735,-170.64773697,0.00043,2]
[314601009,1708449044744,-150.0,0.00043,2]
[314601010,1708449044753,-254.519455,0.00043014,14]
[314601011,1708449044762,-178.85611128,0.00043049,2]
[314601012,1708449044772,-171.412715,0.00043098,30]
[314601013,1708449044781,-152.891122,0.00043098,30]
[314601014,1708449044790,-171.412714,0.00043098,30]
[314601015,1708449044799,-182.96759,0.00043098,30]
[314601016,1708449044808,-215.420462,0.00043098,30]
[314601017,1708449044817,-152.0,0.0004314,7]
[314601018,1708449044830,-164.0,0.00043151,90]
[314601019,1708449044839,-463.03027328,0.0004324,2]
[314601020,1708449044848,-8816.84639177,0.0004324,2]
[314601021,1708449044858,-458.49591498,0.0004324,2]
[314601022,1708449044867,-189.99518278,0.0004324,2]
[314601023,1708449044876,-783.59,0.0004325,2]
[314601024,1708449044887,-150.0,0.00043263,2]
[314601025,1708449044896,-154.87,0.00043294,2]
[314601026,1708449044907,-313.67043375,0.00043299,60]
[314601027,1708449044916,-43936.04176978,0.000433,30]
[314601028,1708449044926,-520.0,0.00043336,2]
[314601029,1708449044936,-438.71,0.00043347,2]
[314601030,1708449044945,-150.0,0.00043366,2]
[314601031,1708449044954,-150.0,0.00043385,2]
[314601032,1708449044966,-152.0,0.00043414,7]
[314601033,1708449044977,-153.27826504,0.00043419,19]
[314601034,1708449044987,-2570.51571515,0.00043434,5]
[314601035,1708449044996,-6829.39706843,0.0004348,5]
[314601036,1708449045006,-1102.64,0.00043482,2]
[314601037,1708449045015,-1008.49,0.000435,7]
[314601038,1708449045024,-1572.13,0.000435,7]
[314601039,1708449045034,-726.66914669,0.00043502,5]
[314601040,1708449045043,-200.0,0.00043587,7]
[314601041,1708449045052,-480.0,0.00043598,2]
[314601042,1708449045061,-2705.27136979,0.000436,5]
[314601043,1708449045070,-150.0,0.00043607,2]
[314601044,1708449045080,-154.87,0.00043627,2]
[314601045,1708449045089,-150.0,0.00043649,2]
[314601046,1708449045098,-208.0,0.0004368,2]
[314601047,1708449045107,-152.0,0.00043688,7]
[314601048,1708449045117,-150.0,0.00043693,2]
[314601049,1708449045126,-1112.47729091,0.00043701,11]
[314601050,1708449045136,-150.0,0.00043703,2]
[314601051,1708449045145,-150.0,0.00043714,2]
[314601052,1708449045154,-150.0,0.00043771,2]
[314601053,1708449045164,-2000.0,0.000438,2]
[314601054,1708449045173,-3441.0,0.000438,120]
[314601055,1708449045183,-257.60700409,0.000438,2]
[314601056,1708449045191,-1000.0,0.000438,2]
[314601057,1708449045203,-200.0,0.000438,2]
[314601058,1708449045392,-754.0,0.000438,30]
[314601059,1708449045402,-150.0,0.00043801,2]
[314601060,1708449045411,-1000.0,0.00043835,70]
[314601061,1708449045420,-800.0,0.00043835,2]
[314601062,1708449045429,-254.519455,0.00043836,14]
[314601063,1708449045438,-389.62523395,0.00043837,4]
[314601064,1708449045447,-183.0,0.0004385,2]
[314601065,1708449045457,-154.87,0.0004396,2]
[314601066,1708449045466,-152.0,0.00043962,7]
[314601067,1708449045475,-150.0,0.0004397,2]
[314601068,1708449045485,-241569.08172684,0.00043998,2]
[314601069,1708449045494,-150.0,0.00043999,2]
[314601070,1708449045503,-150.0,0.00043999,4]